bitfinex/quotes_ETHUSD_20250807
["timestamp","ask_amount","ask_price","bid_price","bid_amount"]
[1754548283545,1.0753,3693.7,3693.6,2.70738574]
[1754548283844,5.2423,3693.7,3693.6,2.70738574]
[1754548284234,6.1479174,3693.7,3693.3,0.001]
[1754548284466,0.1352,3693.5,3693.4,2.70753235]
[1754548284838,4.165,3693.5,3693.4,2.70753235]
[1754548285170,4.165,3693.5,3693.4,3.31933235]
[1754548285464,0.1352,3694.0,3693.9,2.70716586]
[1754548285668,4.165,3694.0,3693.8,2.70716885]
[1754548285863,4.646,3694.0,3693.8,2.70716885]
[1754548286068,0.4591,3693.9,3693.8,2.70716885]
[1754548286367,0.9401,3693.9,3693.8,2.70716885]
[1754548287647,1.5455074,3693.9,3693.8,2.70716885]
[1754548288745,5.1041,3693.9,3693.8,2.70716885]
[1754548289073,5.2393,3693.9,3693.5,2.70745904]
[1754548289367,0.9401,3693.8,3693.5,2.70745904]
[1754548289670,5.1031,3693.7,3693.4,0.1352]
[1754548289868,0.9401,3693.6,3693.3,0.001]
[1754548290171,4.163,3693.5,3693.4,2.70753235]
[1754548290565,5.1031,3693.5,3693.4,2.70753235]
[1754548290945,4.163,3693.5,3693.4,2.70753235]
[1754548291166,0.4591,3694.4,3694.0,2.70707154]
[1754548291375,0.1352,3694.2,3694.0,2.70707154]
[1754548291675,0.4591,3694.1,3694.0,2.70707154]
[1754548291880,0.9401,3694.1,3694.0,2.70707154]
[1754548292081,0.9401,3694.1,3693.9,2.7071552]
[1754548292382,5.1051,3694.0,3693.9,2.7071552]
[1754548292694,14.29513825,3694.0,3693.3,0.001]
[1754548292894,0.9401,3693.9,3693.4,2.70753235]
[1754548293193,5.1041,3693.8,3693.4,2.70753235]
[1754548293498,4.164,3693.8,3693.7,2.70731245]
[1754548294206,5.1041,3693.8,3693.7,2.70731245]
[1754548294350,1.453848,3694.0,3693.9,2.70716586]
[1754548294542,5.437932,3694.0,3693.8,2.70722981]
[1754548294765,4.978832,3694.0,3693.8,2.70722981]
[1754548294973,0.9401,3693.9,3693.8,2.70722981]
[1754548295384,0.9401,3693.9,3693.7,2.70730248]
[1754548295586,4.6241,3693.8,3693.3,0.4776]
[1754548295955,4.6241,3693.8,3693.7,2.70731245]
[1754548296587,5.1051,3693.8,3693.7,2.70731245]
[1754548296796,5.6969903,3693.8,3693.3,0.001]
[1754548296995,4.7568903,3693.8,3693.3,0.001]
[1754548297295,10.43022225,3693.7,3693.3,2.70858226]
[1754548297494,4.164,3693.6,3693.3,0.001]
[1754548297730,5.1041,3693.6,3693.3,0.001]
[1754548297991,4.164,3693.6,3693.5,2.70745904]
[1754548298165,5.58860126,3693.6,3693.3,0.001]
[1754548298550,0.9401,3693.5,3693.3,0.001]
[1754548298886,4.163,3693.4,3693.3,0.001]
[1754548299224,0.9401,3693.4,3693.3,0.001]
[1754548299371,5.1031,3693.4,3693.3,0.001]
[1754548299575,2.54188235,3693.4,3693.3,0.001]
[1754548299778,6.70388235,3693.4,3693.3,0.001]
[1754548300197,16.1940046,3693.4,3693.3,0.001]
[1754548301793,19.1940046,3693.4,3693.3,0.001]
[1754548302670,19.3292046,3693.4,3693.3,0.001]
[1754548303071,20.1431716,3693.4,3693.3,0.001]
[1754548303602,10.65504935,3693.4,3693.3,0.001]
[1754548304100,10.65304935,3693.4,3693.3,0.001]
[1754548305311,9.71394935,3693.4,3693.3,0.001]
[1754548305600,0.1352,3693.5,3693.3,2.70860566]
[1754548305907,4.162,3693.4,3693.3,2.70860566]
[1754548306603,4.6211,3693.4,3693.3,0.001]
[1754548306908,5.1021,3693.4,3693.3,2.70860566]
[1754548307505,4.6211,3693.4,3693.3,2.70860566]
[1754548307798,4.162,3693.4,3693.3,2.70860566]
[1754548307998,4.162,3693.4,3693.3,0.001]
[1754548308199,4.6211,3693.4,3693.3,2.70860566]
[1754548308603,4.162,3693.4,3693.3,2.70860566]
[1754548309110,0.9401,3694.2,3693.5,2.70745904]
[1754548309286,0.1352,3693.9,3693.4,0.4766]
[1754548309605,0.1352,3693.9,3693.8,2.70723915]
[1754548309810,0.81382,3694.0,3693.9,2.70716586]
[1754548309980,0.1352,3694.2,3694.1,2.70695791]
[1754548310307,4.2962,3694.2,3694.1,2.70695791]
[1754548310806,0.1352,3694.2,3694.1,2.70695791]
[1754548310968,4.16,3694.2,3694.1,2.84215791]
[1754548311169,0.1372,3694.6,3694.3,2.70683737]
[1754548311366,4.16,3694.5,3694.2,3.16904602]
[1754548311691,4.16,3694.5,3694.4,2.70679948]
[1754548311895,0.002,3694.6,3694.5,2.70672621]
[1754548312205,0.002,3694.6,3694.5,3.16882621]
[1754548320719,5.2153,3694.6,3692.1,0.4621]
[1754548321018,3.0,3694.0,3693.0,0.4621]
[1754548321210,4.295,3693.9,3693.1,2.70774105]
[1754548321746,0.4348,3693.8,3693.0,3.16992296]
[1754548321921,0.4348,3693.8,3693.0,0.4621]
[1754548322410,1.295369,3693.7,3693.0,0.4621]
[1754548322818,0.4348,3693.6,3693.0,0.4621]
[1754548323123,0.4348,3693.6,3693.2,2.7076101]
[1754548323513,0.4348,3693.6,3693.1,2.70775085]
[1754548323823,0.4348,3693.6,3693.3,0.4631]
[1754548326145,1.248669,3693.6,3693.3,0.4631]
[1754548327643,4.287,3693.6,3693.4,0.4621]
[1754548327808,5.100847,3693.6,3693.4,0.4621]
[1754548332325,5.100847,3693.6,3693.3,2.70859136]
[1754548332643,5.100847,3693.6,3693.5,0.4621]
[1754548332844,5.100847,3693.6,3693.4,0.4621]
[1754548336746,5.100847,3693.6,3693.3,2.70853562]
[1754548337050,0.4348,3693.5,3693.3,0.001]
[1754548337552,0.4348,3693.4,3693.3,0.001]
[1754548337756,0.4348,3693.4,3693.3,2.70860566]
[1754548338052,5.100847,3693.6,3693.3,2.70860566]
[1754548338232,5.100847,3693.6,3693.3,3.17070566]
[1754548338429,0.4348,3693.5,3693.3,3.17070566]
[1754548338741,4.269,3693.4,3693.3,2.70860566]
[1754548338939,4.269,3693.4,3693.3,0.001]
[1754548339144,4.7038,3693.4,3693.3,0.001]
[1754548340354,4.7038,3693.4,3693.3,2.70860566]
[1754548340921,4.7038,3693.4,3693.3,0.001]
[1754548341121,4.7038,3693.4,3693.3,2.70860566]
[1754548341355,4.269,3693.4,3693.3,3.16550566]
[1754548341555,4.269,3693.4,3693.3,2.70860566]
[1754548341718,4.7137,3693.4,3693.3,2.70860566]
[1754548346862,4.269,3693.4,3693.3,3.16550566]
[1754548349173,4.253,3693.4,3693.3,3.16550566]
[1754548350559,0.1352,3693.7,3693.3,3.16549478]
[1754548350760,4.251,3693.6,3693.5,2.70741448]
[1754548351068,4.248,3693.6,3693.5,3.16431448]
[1754548351268,0.1352,3693.8,3693.5,3.16431448]
[1754548351561,4.248,3693.7,3693.6,0.4569]
[1754548352067,4.248,3693.7,3693.5,2.70741448]
[1754548352565,4.248,3693.7,3693.5,3.16431448]
[1754548352760,0.5799,3693.8,3693.5,3.16431448]
[1754548352761,0.1352,3693.8,3693.6,0.4569]
[1754548353065,4.245,3693.7,3693.6,0.4569]
[1754548353774,4.6897,3693.7,3693.3,3.16549307]
[1754548353976,4.245,3693.7,3693.3,2.70859307]
[1754548354132,0.4447,3693.6,3693.4,0.4569]
[1754548354333,4.245,3693.5,3693.4,0.4569]
[1754548356003,0.4447,3693.6,3693.4,0.4569]
[1754548356205,4.243,3693.5,3693.4,0.4569]
[1754548356369,4.243,3693.5,3693.4,3.16443235]
[1754548357619,0.1352,3693.8,3693.4,0.4569]
[1754548357765,4.241,3693.7,3693.5,2.70740075]
[1754548357954,4.23454291,3693.7,3693.6,0.4569]
[1754548358355,0.1352,3693.9,3693.6,0.4569]
[1754548358557,4.237,3693.8,3693.6,0.4569]
[1754548358795,0.5799,3693.9,3693.6,3.16428359]
[1754548358989,4.237,3693.7,3693.6,3.16428359]
[1754548359503,4.237,3693.7,3693.6,0.4569]
[1754548361012,4.237,3693.7,3693.6,3.16428574]
[1754548361318,4.236,3693.7,3693.6,3.16428574]
[1754548361477,4.236,3693.7,3693.6,2.70738574]
[1754548361672,4.236,3693.7,3693.6,3.16428574]
[1754548363381,0.1352,3693.9,3693.6,3.16428574]
[1754548363694,4.23,3693.8,3693.6,3.16428574]
[1754548363879,4.23,3693.7,3693.6,3.16428574]
[1754548364514,0.1352,3693.9,3693.8,2.70723915]
[1754548364811,4.23,3693.9,3693.8,3.16413915]
[1754548365915,4.6747,3693.9,3693.6,3.16422643]
[1754548366208,0.1352,3694.0,3693.8,2.70718546]
[1754548366410,0.1352,3694.0,3693.9,2.70716586]
[1754548366592,4.227,3694.0,3693.9,3.16406586]
[1754548367798,0.1352,3694.1,3693.9,3.16406586]
[1754548367998,4.226,3694.0,3693.9,3.16406586]
[1754548370392,0.1352,3694.1,3694.0,2.70709258]
[1754548370614,4.335304,3694.5,3694.1,2.70701737]
[1754548370615,1.335304,3694.5,3694.1,2.70701737]
[1754548370822,4.221,3694.4,3694.2,0.4984]
[1754548371125,4.3562,3694.4,3694.3,0.4984]
[1754548371502,4.3562,3694.4,3694.3,3.20527274]
[1754548372721,4.3562,3694.4,3694.3,0.4984]
[1754548373115,4.3562,3694.4,3694.3,3.20527274]
[1754548373424,4.3562,3694.4,3694.3,0.4984]
[1754548373630,4.3532,3694.4,3694.3,3.20527274]
[1754548374522,4.217,3694.4,3694.3,3.20527274]
[1754548376796,4.217,3694.4,3694.3,0.4984]
[1754548376992,5.4252,3694.4,3694.1,0.1352]
[1754548377228,5.4252,3694.4,3693.3,0.4994]
[1754548377229,9.62532225,3694.2,3693.5,2.70744107]
[1754548377391,9.62532225,3693.9,3693.4,2.70752537]
[1754548377592,9.62532225,3693.9,3693.3,0.6346]
[1754548377593,5.1221,3693.8,3693.5,2.70743284]
[1754548378087,0.4298,3693.7,3693.5,2.70743284]
[1754548378287,4.6438,3693.6,3693.5,2.70743284]
[1754548380598,4.6438,3693.6,3693.5,3.20583284]
[1754548380599,4.214,3693.6,3693.5,3.20583284]
[1754548380800,4.214,3693.6,3693.5,3.34203284]
[1754548381748,4.6438,3693.6,3693.5,2.84363284]
[1754548382328,0.4298,3693.6,3693.5,2.84363284]
[1754548382531,4.209,3693.7,3693.6,2.70738574]
[1754548382703,4.208,3693.7,3693.5,3.34203284]
[1754548382906,4.208,3693.7,3693.5,2.84363284]
[1754548383234,4.208,3693.7,3693.6,3.20578574]
[1754548384105,0.1352,3694.0,3693.6,0.4984]
[1754548384300,0.1352,3694.0,3693.9,2.70716586]
[1754548384615,4.207,3694.0,3693.9,2.70716586]
[1754548384815,4.207,3694.0,3693.9,3.20556586]
[1754548389938,4.202,3694.0,3693.9,3.20556586]
[1754548390101,0.1352,3694.2,3694.1,2.7070193]
[1754548390302,4.3352,3694.2,3694.1,3.2054193]
[1754548390501,0.1352,3694.2,3694.1,3.2054193]
[1754548390703,0.567,3694.4,3694.2,2.70689735]
[1754548390941,0.002,3694.4,3694.3,2.70687274]
[1754548391318,0.002,3694.4,3694.3,3.20527274]
[1754548391507,4.201,3694.4,3694.3,3.20527274]
[1754548392939,4.201,3694.4,3694.3,0.4984]
[1754548393104,4.201,3694.4,3694.2,0.1352]
[1754548393303,4.6308,3694.4,3694.2,3.34053418]
[1754548393707,4.6308,3694.4,3694.3,2.70687274]
[1754548393948,4.201,3694.4,3694.3,2.70687274]
[1754548394514,4.201,3694.4,3694.3,3.20527274]
[1754548395252,0.002,3694.4,3694.3,3.20527274]
[1754548395543,4.198,3694.4,3694.3,3.20527274]
[1754548395746,0.002,3694.4,3694.3,3.65907274]
[1754548396246,0.002,3694.4,3694.3,3.20527274]
[1754548397249,0.002,3694.4,3694.3,3.65907274]
[1754548397849,0.002,3694.4,3694.3,3.20527274]
[1754548398048,0.002,3694.4,3694.3,3.65907274]
[1754548398552,0.002,3694.4,3694.3,3.20527274]
[1754548401644,0.002,3694.4,3694.3,3.65647274]
[1754548403635,0.002,3694.4,3694.3,7.84347274]
[1754548409988,0.002,3694.6,3694.3,7.84347274]
[1754548410147,0.002,3694.6,3694.5,2.70672621]
[1754548410352,0.002,3694.6,3694.5,7.02192621]
[1754548410552,0.002,3694.6,3694.5,7.94762621]
[1754548410947,1e-08,3694.6,3694.5,7.94762621]
[1754548413434,0.002,3694.9,3694.8,2.70650644]
[1754548413435,1e-08,3694.9,3694.8,2.70650644]
[1754548413633,1e-08,3695.3,3695.2,2.70621346]
[1754548413868,1e-08,3695.3,3695.2,6.88321346]
[1754548414042,1e-08,3695.3,3695.2,7.35771346]
[1754548414246,1e-08,3695.3,3695.2,7.94411346]
[1754548415262,1e-08,3695.4,3695.3,2.70614023]
[1754548415464,1e-08,3695.4,3695.3,3.18440163]
[1754548415699,1e-08,3695.4,3695.3,6.65890163]
[1754548415988,0.002,3696.1,3696.0,2.7056277]
[1754548416138,0.002,3696.1,3696.0,6.8816277]
[1754548416342,0.002,3696.1,3696.0,7.4913277]
[1754548417344,0.002,3696.1,3696.0,7.9425277]
[1754548417637,0.002,3696.6,3696.5,2.70526173]
[1754548417875,0.002,3696.6,3696.5,6.88026173]
[1754548418175,1e-08,3696.6,3696.5,11.49116173]
[1754548418540,1e-08,3697.0,3696.9,2.70496902]
[1754548418739,1e-08,3697.0,3696.9,6.90701871]
[1754548418940,1e-08,3697.4,3697.3,5.70467638]
[1754548419169,1e-08,3697.4,3697.3,19.91979863]
[1754548419513,1e-08,3697.4,3697.3,20.98069863]
[1754548420916,0.46440001,3697.4,3697.3,10.01487638]
[1754548421415,1e-08,3697.4,3697.3,10.01487638]
[1754548421602,1e-08,3697.4,3697.3,10.48937638]
[1754548422588,1e-08,3697.4,3697.3,10.01487638]
[1754548422811,0.46440001,3697.4,3697.3,5.83987638]
[1754548423011,0.46440001,3697.4,3697.3,10.01387638]
[1754548423217,0.46440001,3697.4,3697.3,5.83987638]
[1754548423426,0.46440001,3697.4,3697.3,7.01487638]
[1754548424321,0.46440001,3697.4,3697.3,0.1352]
[1754548424525,0.91960001,3697.4,3697.3,7.01287638]
[1754548424725,0.91960001,3697.4,3697.3,4.3082]
[1754548424921,0.91960001,3697.4,3697.3,0.1352]
[1754548425123,0.91960001,3697.4,3697.2,4.173]
[1754548425313,0.9196,3697.3,3697.0,4.3082]
[1754548425508,0.9196,3697.2,3697.0,4.3082]
[1754548425704,0.9196,3697.1,3697.0,7.01309586]
[1754548425900,0.9196,3697.1,3697.0,2.84009586]
[1754548427623,0.9196,3697.1,3697.0,0.1352]
[1754548428938,0.9196,3697.1,3697.0,2.84009586]
[1754548429143,0.9196,3697.1,3697.0,0.1352]
[1754548430030,0.9196,3697.1,3697.0,2.70489586]
[1754548430540,0.9196,3697.1,3696.7,6.8751079]
[1754548430742,0.9115,3697.0,3696.7,6.8751079]
[1754548430942,0.4524,3697.0,3696.9,2.70495348]
[1754548431810,1e-08,3697.4,3697.1,2.70478729]
[1754548432010,0.9115,3697.3,3697.1,2.70478729]
[1754548432249,1e-08,3697.4,3697.3,2.70467638]
[1754548432616,1e-08,3697.4,3697.3,3.20377638]
[1754548440065,1e-08,3697.4,3697.3,3.33897638]
[1754548441835,1e-08,3697.4,3697.3,3.77147638]
[1754548442546,1e-08,3697.4,3697.3,3.33897638]
[1754548445171,0.002,3698.2,3698.1,2.70409129]
[1754548445172,1e-08,3698.2,3698.1,2.70409129]
[1754548445381,1e-08,3698.2,3698.1,6.86609129]
[1754548445545,1e-08,3698.2,3698.1,7.79769129]
[1754548445746,1e-08,3698.2,3698.1,7.93289129]
[1754548446391,1e-08,3698.2,3698.1,7.50039129]
[1754548446741,1e-08,3698.2,3698.1,7.93289129]
[1754548447160,1e-08,3698.2,3698.1,7.50039129]
[1754548449960,1e-08,3698.2,3698.1,2.83929129]
[1754548450162,0.91150001,3698.2,3698.1,2.83929129]
[1754548452367,0.91150001,3698.2,3698.1,6.99929129]
[1754548457123,0.45910001,3698.2,3698.1,6.99929129]
[1754548459239,0.91150001,3698.2,3698.1,6.99929129]
[1754548459705,0.45910001,3698.2,3698.1,6.99929129]
[1754548459905,0.45910001,3698.2,3696.3,6.498]
[1754548460233,0.45910001,3698.2,3697.6,0.1352]
[1754548460234,0.4553,3698.1,3697.6,0.1352]
[1754548460398,9.62532225,3697.9,3697.3,2.83984752]
[1754548460593,0.8958,3697.8,3697.4,2.70460262]
[1754548460793,0.4405,3697.7,3697.3,0.1352]
[1754548461112,0.1352,3697.9,3697.6,2.70445694]
[1754548461296,0.1352,3697.9,3697.5,2.7045194]
[1754548461495,0.4553,3697.8,3697.4,6.8626031]
[1754548462032,0.4405,3697.7,3697.5,2.70452122]
[1754548462193,0.8958,3697.7,3697.5,2.70452122]
[1754548462595,0.8958,3697.7,3697.6,2.70445694]
[1754548462596,0.4553,3697.7,3697.6,2.70445694]
[1754548462797,0.1352,3697.9,3697.7,2.70437947]
[1754548463234,0.4405,3697.8,3697.7,2.70437947]
[1754548463939,1e-08,3698.2,3698.1,2.70409129]
[1754548464601,0.44050001,3698.2,3698.1,2.70409129]
[1754548464824,0.44050001,3698.2,3697.9,3.29686585]
[1754548465042,0.4405,3698.1,3697.9,2.83936585]
[1754548465242,1e-08,3698.2,3697.9,0.1352]
[1754548465424,1e-08,3698.2,3698.0,0.4575]
[1754548465739,1e-08,3698.2,3698.1,2.70409129]
[1754548466304,1e-08,3698.2,3698.1,3.16159129]
[1754548466841,1e-08,3698.2,3698.1,3.29679129]
[1754548468700,1e-08,3698.2,3698.1,3.29779129]
[1754548471050,0.44050001,3698.2,3698.1,0.1362]
[1754548471256,0.89580001,3698.2,3698.1,0.1362]
[1754548471552,1.93459224,3698.2,3698.1,0.1362]
[1754548471750,1.93459224,3698.2,3698.1,0.001]
[1754548473351,1.47929224,3698.2,3698.1,0.001]
[1754548474461,1.93459224,3698.2,3698.1,0.001]
[1754548475058,11.42471449,3698.2,3698.1,0.001]
[1754548475219,2.06979224,3698.2,3698.1,0.001]
[1754548475748,1.17399224,3698.2,3698.1,2.70509129]
[1754548476069,0.13520001,3698.2,3698.1,0.4585]
[1754548476223,0.13520001,3698.2,3698.1,0.001]
[1754548476224,1e-08,3698.2,3698.1,0.001]
[1754548476556,0.44050001,3698.2,3698.1,0.001]
[1754548476757,1.03100001,3698.2,3698.1,0.001]
[1754548477146,2.49911224,3698.2,3698.1,0.001]
[1754548477535,0.13520001,3698.2,3698.1,2.70509129]
[1754548477724,1e-08,3698.2,3698.1,3.16259129]
[1754548479174,1e-08,3698.2,3698.1,0.4585]
[1754548479702,1e-08,3698.2,3698.1,0.001]
[1754548480062,1e-08,3698.2,3698.1,2.70509129]
[1754548480391,1e-08,3698.2,3698.1,3.16259129]
[1754548481095,1e-08,3698.2,3698.1,0.001]
[1754548481294,0.44050001,3698.2,3698.1,0.001]
[1754548482770,0.44050001,3698.2,3698.1,2.70509129]
[1754548483093,1e-08,3698.2,3698.1,3.16259129]
[1754548484169,1e-08,3698.2,3698.1,2.70509129]
[1754548484397,0.44050001,3698.2,3698.1,0.001]
[1754548484989,1e-08,3698.2,3698.1,0.001]
[1754548485300,0.44050001,3698.2,3698.1,0.001]
[1754548485499,1e-08,3698.2,3698.1,0.001]
[1754548485684,0.44050001,3698.2,3698.1,0.001]
[1754548486106,0.89580001,3698.2,3698.1,0.001]
[1754548486406,0.44050001,3698.2,3698.1,0.001]
[1754548489102,0.89580001,3698.2,3698.1,0.001]
[1754548489301,2.66391224,3698.2,3698.1,0.001]
[1754548489808,2.20861224,3698.2,3698.1,0.001]
[1754548489988,2.79911224,3698.2,3698.1,0.001]
[1754548490304,12.28923449,3698.2,3698.1,0.001]
[1754548491817,16.44723449,3698.2,3698.1,0.001]
[1754548493897,6.50181224,3698.2,3698.1,0.001]
[1754548494094,6.06131224,3698.2,3698.1,0.4632]
[1754548494481,1.90331224,3698.2,3698.1,0.4632]
[1754548494707,4.29320001,3698.2,3698.1,0.4632]
[1754548495219,4.29320001,3698.2,3698.1,0.001]
[1754548495518,4.73110001,3698.2,3698.1,0.001]
[1754548495815,14.67842226,3698.2,3698.1,0.001]
[1754548499121,14.22122226,3698.2,3698.1,0.001]
[1754548499889,6.03062281,3698.2,3698.1,0.001]
[1754548500089,6.03062281,3698.2,3698.1,0.4632]
[1754548500288,4.29220001,3698.2,3698.1,0.4632]
[1754548500612,4.29220001,3698.2,3698.1,0.9102]
[1754548500800,4.15700001,3698.2,3698.1,0.9102]
[1754548500996,4.15700001,3698.2,3698.1,3.61429129]
[1754548501199,4.15700001,3698.2,3698.1,0.9102]
[1754548501623,1e-08,3698.2,3698.1,0.9102]
[1754548501991,1e-08,3698.2,3698.1,3.61429129]
[1754548502192,1e-08,3698.2,3698.1,0.9102]
[1754548503624,1e-08,3698.2,3698.1,0.4632]
[1754548506013,1e-08,3698.2,3698.1,3.16729129]
[1754548506191,1e-08,3698.2,3698.1,3.61429129]
[1754548508526,1e-08,3698.2,3698.1,3.16729129]
[1754548509999,1e-08,3698.2,3698.1,3.74949129]
[1754548510688,1e-08,3698.2,3698.1,3.30249129]
[1754548512429,0.43790001,3698.2,3698.1,0.1362]
[1754548512637,1e-08,3698.2,3698.1,0.1362]
[1754548512825,1e-08,3698.2,3698.1,0.5984]
[1754548513012,1e-08,3698.2,3698.1,0.4632]
[1754548514449,1e-08,3698.2,3698.1,3.16729129]
[1754548515624,1e-08,3698.2,3698.1,0.001]
[1754548515942,0.43790001,3698.2,3698.1,0.001]
[1754548517344,0.95673001,3698.2,3698.1,0.001]
[1754548517553,7.11794818,3698.2,3698.1,0.001]
[1754548517751,7.66794818,3698.2,3698.1,0.001]
[1754548518917,7.92133237,3698.2,3698.1,0.001]
[1754548523351,12.07733237,3698.2,3698.1,0.001]
[1754548523554,11.62013237,3698.2,3698.1,0.001]
[1754548523756,12.08933237,3698.2,3698.1,0.001]
[1754548528332,19.37774537,3698.2,3698.1,0.001]
[1754548529764,3.25431067,3697.8,3697.7,0.001]
[1754548530066,20.61344818,3697.8,3697.7,0.001]
[1754548530262,21.54734818,3697.8,3697.7,0.001]
[1754548531035,3.25460323,3697.4,3696.9,0.001]
[1754548531367,20.15310967,3697.4,3696.9,0.001]
[1754548531572,22.66746085,3697.4,3696.9,0.001]
[1754548531752,24.08546085,3697.4,3696.9,0.001]
[1754548532551,19.46126085,3697.4,3696.9,0.001]
[1754548532870,23.15256085,3697.4,3697.3,0.4841]
[1754548533166,18.99656085,3697.4,3697.3,0.4841]
[1754548533367,23.61626085,3697.4,3697.3,0.001]
[1754548533666,24.08546085,3697.4,3697.3,0.001]
[1754548534331,3.25489586,3697.0,3696.9,0.001]
[1754548534536,20.2886023,3697.0,3696.9,0.001]
[1754548534737,21.2225023,3697.0,3696.9,0.001]
[1754548535545,16.5983023,3697.0,3696.9,0.001]
[1754548535749,20.7533023,3697.0,3696.9,0.001]
[1754548535966,23.3868865,3697.0,3696.9,0.001]
[1754548536176,23.8560865,3697.0,3696.9,0.001]
[1754548537556,2.70511537,3696.7,3696.6,0.001]
[1754548537757,19.73882181,3696.7,3696.6,0.001]
[1754548537956,23.40138367,3696.7,3696.6,0.001]
[1754548538267,23.40023975,3696.7,3696.6,0.001]
[1754548538463,0.55,3696.2,3696.1,0.001]
[1754548538674,20.15284382,3696.2,3696.1,0.001]
[1754548538861,23.65661959,3696.2,3696.1,0.001]
[1754548540883,22.72271959,3696.2,3696.1,0.001]
[1754548541107,22.72271959,3696.2,3696.1,0.4841]
[1754548541262,22.72271959,3696.2,3696.1,0.001]
[1754548541462,23.18741959,3696.2,3696.1,0.001]
[1754548542190,23.65661959,3696.2,3696.1,0.001]
[1754548542515,19.03241959,3696.2,3696.1,0.001]
[1754548542678,18.56771959,3696.2,3696.1,0.4841]
[1754548543017,13.23359734,3696.2,3696.1,0.4841]
[1754548543589,14.04704734,3696.2,3696.1,0.4841]
[1754548543809,11.34156604,3696.2,3696.1,0.4841]
[1754548544124,11.34056604,3696.2,3696.1,0.9293]
[1754548544471,11.34156604,3696.2,3696.1,0.9293]
[1754548545117,4.06569027,3696.2,3696.1,0.9293]
[1754548545416,7.54344027,3696.2,3696.1,0.9293]
[1754548545619,17.03356252,3696.2,3696.1,0.4841]
[1754548548905,12.87756252,3696.2,3696.1,0.4841]
[1754548549109,3.38744027,3696.2,3696.1,0.9293]
[1754548549431,7.54244027,3696.2,3696.1,0.9293]
[1754548550805,17.03256252,3696.2,3696.1,0.4841]
[1754548551034,19.08769244,3696.2,3696.1,0.4841]
[1754548551408,19.08769244,3696.2,3696.1,0.9195]
[1754548551604,17.03256252,3696.2,3696.1,0.9195]
[1754548551803,7.40724027,3696.2,3696.1,0.9195]
[1754548552028,4.2902,3696.2,3696.1,3.6250545]
[1754548552607,0.1352,3696.2,3696.1,3.6250545]
[1754548552914,0.25254195,3696.5,3696.3,2.70534152]
[1754548553223,7.155,3696.4,3696.1,0.001]
[1754548553530,9.49012225,3696.2,3696.1,0.001]
[1754548553721,13.64512225,3696.2,3696.1,0.4866]
[1754548554036,13.89773555,3696.2,3696.1,0.4866]
[1754548554816,19.60321685,3696.2,3696.1,0.001]
[1754548555159,22.06283016,3696.2,3696.1,0.001]
[1754548555452,22.53723016,3696.2,3696.1,0.001]
[1754548556053,23.08723016,3696.2,3696.1,0.001]
[1754548556610,23.57823016,3696.2,3696.1,0.001]
[1754548557017,23.93127302,3696.2,3696.1,0.001]
[1754548557211,3.25577412,3695.8,3695.7,0.001]
[1754548557553,18.18385413,3695.8,3695.7,0.001]
[1754548557758,6.256067,3695.4,3695.3,0.001]
[1754548557942,20.15280255,3695.4,3695.3,0.001]
[1754548558110,20.28800255,3695.4,3695.3,0.001]
[1754548558309,21.25340255,3695.4,3695.3,0.001]
[1754548558565,23.64933908,3695.4,3695.3,0.001]
[1754548559440,23.15833908,3695.4,3695.3,0.001]
[1754548560929,23.15933908,3695.4,3695.3,0.001]
[1754548562048,19.00433908,3695.4,3695.3,0.001]
[1754548562238,23.64493908,3695.4,3695.3,0.001]
[1754548562723,19.48993908,3695.4,3695.3,0.001]
[1754548562923,23.64493908,3695.4,3695.3,0.001]
[1754548563581,23.17053908,3695.4,3695.3,0.001]
[1754548564287,23.64493908,3695.4,3695.3,0.001]
[1754548566064,23.39232578,3695.4,3695.3,0.001]
[1754548569468,22.91792578,3695.4,3695.3,0.4866]
[1754548569873,23.39232578,3695.4,3695.3,0.001]
[1754548570981,22.91792578,3695.4,3695.3,0.4866]
[1754548572543,18.21292578,3695.4,3695.3,0.4866]
[1754548572894,19.97098925,3695.4,3695.3,0.922]
[1754548573238,17.26492225,3695.4,3695.3,0.922]
[1754548573556,3.1352,3695.4,3695.3,0.922]
[1754548573879,7.2892,3695.4,3695.3,0.922]
[1754548574581,16.77932225,3695.4,3695.3,0.922]
[1754548575092,16.77932225,3695.4,3695.3,0.001]
[1754548575248,16.77932225,3695.4,3695.3,0.4866]
[1754548577667,16.77932225,3695.4,3695.3,0.922]
[1754548577974,16.77832225,3695.4,3695.3,0.922]
[1754548578500,7.2882,3695.4,3695.3,0.922]
[1754548579384,16.77832225,3695.4,3695.3,0.922]
[1754548579588,16.77832225,3695.4,3695.3,0.4866]
[1754548581596,12.62532225,3695.4,3695.3,0.4866]
[1754548581885,16.77832225,3695.4,3695.3,0.4866]
[1754548582991,13.77832225,3695.4,3695.3,0.4866]
[1754548583155,16.16375418,3695.4,3695.3,0.001]
[1754548583691,15.72675418,3695.4,3695.3,0.4711]
[1754548584187,18.86982118,3695.4,3695.3,0.001]
[1754548584487,22.41982118,3695.4,3695.3,0.001]
[1754548584837,22.91382118,3695.4,3695.3,0.001]
[1754548585280,23.38392118,3695.4,3695.3,0.001]
[1754548586862,22.88992118,3695.4,3695.3,0.001]
[1754548587460,23.38392118,3695.4,3695.3,0.001]
[1754548588388,3.25635994,3695.0,3694.9,0.001]
[1754548588624,17.92994407,3695.0,3694.9,0.001]
[1754548588778,18.36694407,3695.0,3694.9,0.001]
[1754548588982,18.83704407,3695.0,3694.9,0.001]
[1754548590414,21.83704407,3695.0,3694.9,0.001]
[1754548593016,17.24804407,3695.0,3694.9,0.4711]
[1754548593215,17.67358413,3695.0,3694.9,0.4711]
[1754548593409,16.77732225,3695.0,3694.9,0.4711]
[1754548593604,12.62532225,3695.0,3694.9,0.4711]